Cogmind - Beta 15 @@@ ROGUE MODE // 2025.05.30 @ 17:10:42 Player: Elias Result: Self-destructed Performance ------------- Evolutions (1) 500 Regions Visited (3) 600 Robots Destroyed (13) 65 Value Destroyed (293) 293 Prototype IDs (0) 0 Alien Tech Used (0) 0 Bonus (7) 7 TOTAL SCORE: 1465 Bonus ------- Follower Combat Kills 7 Cogmind --------- Core Integrity 391/400 Matter 227/300 Energy 125/125 System Corruption 0% Temperature Cool (98) Movement Walking (400) Ox4 Location -9/Materials Parts ------- > --- POWER (1) -------- Light Ion Engine > --- PROPULSION (4) --- Aluminum Leg Aluminum Leg > --- UTILITY (2) ------ Huge Storage Unit Signal Interpreter > --- WEAPON (2) ------- Particle Gun Light Assault Rifle > --- INVENTORY (25) --- Light Treads Light Treads Flight Unit Flight Unit Flight Unit Flight Unit Flight Unit Improved Heat Sink Small Storage Unit Sensor Array Improved Terrain Scanner Assault Rifle Mining Laser Peak State ------------ > --- POWER ------------ Light Ion Engine > --- PROPULSION ------- Aluminum Leg Aluminum Leg > --- UTILITY ---------- Huge Storage Unit Improved Terrain Scanner > --- WEAPON ----------- Particle Gun Assault Rifle > --- INVENTORY -------- Light Treads Light Treads Flight Unit Flight Unit Improved Heat Sink Small Storage Unit Light Assault Rifle Mining Laser [Rating: 11] Favorites ----------- Power Light Ion Engine Engine Light Ion Engine Propulsion Aluminum Leg Leg Aluminum Leg Utility Improved Terrain Scanner Device Improved Terrain Scanner Storage Huge Storage Unit Processor Signal Interpreter Weapon Assault Rifle Energy Gun Particle Gun Ballistic Gun Assault Rifle Special Weapon Mining Laser Build | -11 -10 -10 -9 ------- Run | Yrd Mat Min Mat Slots Evolved 2 | . . . 2 Power . | . . . . Propulsion 2 | . . . 2 Utility . | . . . . Weapon . | . . . . Parts Attached 13 | 7 5 1 . Power 2 | 1 1 . . Engine 2 | 1 1 . . Core . | . . . . Reactor . | . . . . Propulsion 2 | 2 . . . Treads . | . . . . Leg 2 | 2 . . . Wheel . | . . . . Hover . | . . . . Flight . | . . . . Utility 4 | 2 1 1 . Device 1 | 1 . . . Storage 2 | 1 1 . . Processor 1 | . . 1 . Hackware . | . . . . Protection . | . . . . Artifact . | . . . . Weapon 5 | 2 3 . . Energy Gun 2 | 1 1 . . Energy Cannon . | . . . . Ballistic Gun 2 | 1 1 . . Ballistic Cannon . | . . . . Launcher . | . . . . Special Weapon 1 | . 1 . . Impact Weapon . | . . . . Slashing Weapon . | . . . . Piercing Weapon . | . . . . Special Melee Weapon . | . . . . Unidentified Prototypes . | . . . . Parts Lost 1 | . 1 . . Power 1 | . 1 . . Propulsion . | . . . . Utility . | . . . . Weapon . | . . . . Highest Loss Streak 1 | . 1 . . To Critical Strikes . | . . . . Average Backups 8 | 3 8 13 13 Power . | . . . . Propulsion 4 | 1 4 7 7 Utility 2 | . 1 4 4 Weapon 1 | . 2 2 2 Tool/Special . | . . . . Unused Backups 8 | . . . 8 Power . | . . . . Propulsion 7 | . . . 7 Utility 1 | . . . 1 Weapon . | . . . . Tool/Special . | . . . . Average Slot Usage (%) 97 | . 99 100 77 Engine 13 | . 13 14 11 Leg 27 | . 28 28 22 Device 12 | . 14 14 . Storage 13 | . 14 14 11 Energy Gun 13 | . 14 14 11 Ballistic Gun 12 | . 12 14 11 Special Weapon 1 | . 1 . . Peak Build Rating 11 | 9 11 11 9 Average Rating 9 | 4 10 10 9 On Entrance 7 | . 9 11 9 Naked Turns . | . . . . Heaviest Build 89 | 12 89 88 87 Greatest Support 20 | 20 20 20 20 Greatest Overweight (x) 4 | 3 4 4 4 Average Overweight (x) 2 | . 2 4 4 Largest Inventory Capacity 25 | 8 25 25 25 Average Capacity 20 | 7 21 25 25 Most Carried 13 | 6 13 13 13 Average Carried 8 | 3 8 13 13 Final Capacity 25 | 8 25 25 25 Final Carried 13 | 5 13 13 13 Class Distribution -------------------- 100% | Mutant Dominant Class ---------------- Mutant | -10/Materials Mutant | -10/Mines Mutant | -9/Materials Resources | -11 -10 -10 -9 ----------- Run | Yrd Mat Min Mat Matter Collected 377 | 266 111 . . Remotely . | . . . . Salvage Created 500 | 15 451 . 34 Parts 31 | 3 24 . 4 Haulers Intercepted 2 | . 2 . . Recyclers Shooed 2 | 1 1 . . Parts Field Recycled . | . . . . Retrieved Matter . | . . . . Parts Self-Destructed . | . . . . Prevented . | . . . . Kills | -11 -10 -10 -9 ------- Run | Yrd Mat Min Mat Combat Hostiles Destroyed 8 | . 6 . 2 Guns 8 | . 6 . 2 Classes Destroyed 6 | 1 4 . 1 Tunneler 1 | 1 . . . Hauler 2 | . 2 . . Recycler 1 | . 1 . . Watcher 1 | . 1 . . Swarmer 2 | . . . 2 Grunt 6 | . 6 . . Best Kill Streak 4 | 1 4 . 2 Combat Bots Only 2 | . 2 . 2 Max Kills in Single Turn 1 | 1 1 . 1 Gunslinging . | . . . . Exploded . | . . . . Melee . | . . . . Uniques/NPCs Destroyed . | . . . . Combat | -11 -10 -10 -9 -------- Run | Yrd Mat Min Mat Hostile Shots Fired 49 | . 43 . 6 Missed 13 | . 12 . 1 Hits 36 | . 31 . 5 Projectile 36 | . 31 . 5 Damage Taken 435 | . 396 . 39 Core 110 | . 101 . 9 Absorbed by Shields . | . . . . Core Remaining (%) 79 | 100 . 59 . Volleys Fired 46 | 10 31 . 5 Largest 2 | 2 2 . 2 Hottest 100 | 60 100 . 85 Shots Fired 91 | 20 61 . 10 Gun 90 | 20 60 . 10 Cannon . | . . . . Launcher . | . . . . Special 1 | . 1 . . Kinetic 45 | 10 30 . 5 Thermal 46 | 10 31 . 5 Explosive . | . . . . Electromagnetic . | . . . . Robot Hit Streak 16 | 7 16 . 2 Robot Miss Streak 3 | 1 3 . 2 Penetration Max . | . . . . Secondary Targets 1 | . . . 1 Max Gunslinging Chain 1 | . . . 1 Shots Hit Robots 61 | 17 39 . 5 Core Hits 28 | 2 23 . 3 Critical Kills . | . . . . Critical Parts Destroyed 1 | . 1 . . Critical Strikes 1 | . 1 . . Destroy 1 | . 1 . . Melee Attacks . | . . . . Impact . | . . . . Slashing . | . . . . Piercing . | . . . . Sneak Attacks . | . . . . Combat Hostiles . | . . . . Follow-up Attacks . | . . . . Damage Inflicted 790 | 203 517 . 70 Guns 790 | 203 517 . 70 Cannons . | . . . . Explosions . | . . . . Melee . | . . . . Ramming . | . . . . Kinetic 428 | 100 305 . 23 Thermal 362 | 103 212 . 47 Explosive . | . . . . Electromagnetic . | . . . . Impact . | . . . . Slashing . | . . . . Piercing . | . . . . Highest Corruption . | . . . . Average Corruption . | . . . . Corruption Purged . | . . . . Corruption Blocked . | . . . . Overload Shots . | . . . . Overflow Damage . | . . . . Projectiles . | . . . . Explosions . | . . . . Melee . | . . . . Knockbacks . | . . . . Impact . | . . . . Kinetic . | . . . . Secondary . | . . . . Self-Inflicted Damage . | . . . . Shots . | . . . . Rammed . | . . . . Targets Rammed . | . . . . Kicked . | . . . . Crushed . | . . . . Highest Temperature 98 | . 61 . 98 Average Temperature 34 | . 31 . 52 Received Heat Transfer 225 | . 225 . . Siege Activations . | . . . . Martial Activations . | . . . . Shielding Activations . | . . . . Robots Disrupted . | . . . . Combat Hostiles . | . . . . Robots Corrupted . | . . . . Combat Hostiles . | . . . . Parts Fried . | . . . . Impact Corruptions . | . . . . Robots Melted . | . . . . Combat Hostiles . | . . . . Parts Melted . | . . . . Heat Transferred 811 | 225 475 . 111 Parts Sabotaged . | . . . . Parts Stolen . | . . . . Parts Stripped . | . . . . Power Chain Reactions . | . . . . Alert | -11 -10 -10 -9 ------- Run | Yrd Mat Min Mat Maximum Alert Level . | . . . . Low Security (%) 100 | 100 100 100 100 Level 1 . | . . . . Level 2 . | . . . . Level 3 . | . . . . Level 4 . | . . . . Level 5 . | . . . . High Security . | . . . . Max Security . | . . . . Peak Influence 79 | 5 79 . 52 Initial . | . . . . Average 14 | . 26 . 5 Influence Increases 291 | 5 212 . 74 Destroy 0b10 Robot/C 180 | . 120 . 60 Destroy 0b10 Robot/NC 25 | 5 20 . . Destroy Leader 46 | . 36 . 10 Allied During Kill 4 | . . . 4 Successful Hack 21 | . 21 . . Disable Machine 15 | . 15 . . Influence Decreases 239 | 5 212 . 22 Time Decay 217 | 5 202 . 10 Lost Part 10 | . 10 . . Lost Ally 12 | . . . 12 Squads Dispatched 2 | . 2 . . Investigation 1 | . 1 . . Extermination . | . . . . Reinforcement 1 | . 1 . . Assault . | . . . . Garrison . | . . . . Intercept . | . . . . Searches Triggered . | . . . . Construction Impeded . | . . . . Haulers Reinforced . | . . . . Active Scanning Responses . | . . . . Cargo Convoy Interrupts . | . . . . Stealth | -11 -10 -10 -9 --------- Run | Yrd Mat Min Mat Distress Signals 2 | . 2 . . Communications Jammed . | . . . . Distress Signals . | . . . . Times Spotted 14 | . 11 . 3 Peak Tracking Total 3 | . 3 . 3 Tactical Retreats . | . . . . Traps | -11 -10 -10 -9 ------- Run | Yrd Mat Min Mat Traps Triggered . | . . . . Indirectly . | . . . . Trap Hack Attempts . | . . . . Triggered . | . . . . Disarmed . | . . . . Reprogrammed . | . . . . Reused . | . . . . Traps Extracted . | . . . . Installed . | . . . . Triggered . | . . . . Machines | -11 -10 -10 -9 ---------- Run | Yrd Mat Min Mat Machines Disabled 1 | . 1 . . Max in Single Turn 1 | . 1 . . Machines Repaired . | . . . . Machines Dismantled . | . . . . Machines Sabotaged . | . . . . Overloaded Fab Kills . | . . . . Hacking | -11 -10 -10 -9 --------- Run | Yrd Mat Min Mat Machines Accessed 3 | . 3 . . Terminals 3 | . 3 . . Fabricators . | . . . . Repair Stations . | . . . . Recycling Units . | . . . . Scanalyzers . | . . . . Garrison Access . | . . . . Total Hacks 9 | . 9 . . Successful 3 | . 3 . . Failed 6 | . 6 . . Catastrophic 2 | . 2 . . Database Lockouts . | . . . . Manual . | . . . . Terminals 9 | . 9 . . Fabricators . | . . . . Repair Stations . | . . . . Recycling Units . | . . . . Scanalyzers . | . . . . Garrison Access . | . . . . Terminal Hacks 3 | . 3 . . Record 1 | . 1 . . Robot Analysis 2 | . 2 . . Fabricator Hacks . | . . . . Repair Station Hacks . | . . . . Recycling Unit Hacks . | . . . . Scanalyzer . | . . . . Garrison Access Hacks . | . . . . Unauthorized Hacks . | . . . . Terminals . | . . . . Fabricators . | . . . . Repair Stations . | . . . . Recycling Units . | . . . . Scanalyzers . | . . . . Garrison Access . | . . . . Data Cores Recovered . | . . . . Used . | . . . . Hacking Detections 3 | . 3 . . Full Trace Events 2 | . 2 . . Feedback Events . | . . . . Feedback Blocked . | . . . . Robot Schematics Acquired . | . . . . Robots Built . | . . . . Authchips . | . . . . Time . | . . . . Total Robot Build Rating . | . . . . Part Schematics Acquired . | . . . . Parts Built . | . . . . Authchips . | . . . . Time . | . . . . Total Part Build Rating . | . . . . Parts Repaired . | . . . . Time . | . . . . Parts Recycled . | . . . . Recycled Matter . | . . . . Retrieved Matter . | . . . . Retrieved Components . | . . . . Parts Scanalyzed . | . . . . Part Schematics Acquired . | . . . . Parts Damaged . | . . . . Bothacking | -11 -10 -10 -9 ------------ Run | Yrd Mat Min Mat Used RIF Installer . | . . . . Robots Hacked . | . . . . Non-combat . | . . . . Combat . | . . . . Robot Hacks Applied . | . . . . Relay Couplers Released . | . . . . Fabnet Peak Effective % . | . . . . Robots Rewired . | . . . . Allies Hacked . | . . . . Hacks Repelled . | . . . . Allies | -11 -10 -10 -9 -------- Run | Yrd Mat Min Mat Total Allies 2 | . . 2 . Largest Group 2 | . . 2 2 Highest-Rated Group 52 | . . 52 52 Highest-Rated Ally 31 | . . 31 31 Total Orders . | . . . . Ally Attacks 8 | . . . 8 Total Damage 86 | . . . 86 Kills 1 | . . . 1 Allies Corrupted . | . . . . Allies Melted . | . . . . Intel | -11 -10 -10 -9 ------- Run | Yrd Mat Min Mat Active Infowar (turns) 712 | 9 495 208 . Terrain 712 | 9 495 208 . Robot Analysis Total 2 | . 2 . . Derelict Logs Recovered 1 | . . 1 . Drone Launches . | . . . . Drone Recoveries . | . . . . Exploration | -11 -10 -10 -9 ------------- Run | Yrd Mat Min Mat Turns Passed 900 | 137 495 214 54 Spaces Moved 273 | 76 133 54 10 Core 33 | 33 . . . Treads . | . . . . Legs 240 | 43 133 54 10 Wheels . | . . . . Hover . | . . . . Flight . | . . . . Fastest Speed 50 | 50 120 400 400 Average Speed 263 | 117 282 400 400 Slowest Speed 400 | 200 400 400 400 Overloaded Moves . | . . . . Propulsion Burnouts . | . . . . Robots Hopped . | . . . . Potential Cave-ins . | . . . . Cave-ins Triggered . | . . . . Exploration Rate (%) 14 | 4 34 16 3 Regions Visited 3 Branch Regions 1 Pre-discovered Areas . | . . . . Known Exits Taken 1 | . . 1 . Unknown Exits Taken 2 | 1 1 . . Scrap Searched . | . . . . Spaces Dug . | . . . . Terrain Destroyed . | . . . . Melee . | . . . . Projectile . | . . . . AOE . | . . . . Terrain Rammed . | . . . . Walls Destroyed . | . . . . Machines Disabled . | . . . . Actions | -11 -10 -10 -9 --------- Run | Yrd Mat Min Mat Total 364 | 104 191 54 15 Wait 12 | . 12 . . Move 270 | 75 132 53 10 Hop . | . . . . Pick Up 22 | 12 10 . . Fast Attach . | . . . . Attach 8 | 7 1 . . Detach . | . . . . Swap 5 | . 4 1 . Drop 1 | . 1 . . Fire 46 | 10 31 . 5 Melee . | . . . . Ram . | . . . . Kick . | . . . . Crush . | . . . . Escape Stasis . | . . . . Rewire . | . . . . Trap . | . . . . Miscellaneous . | . . . . Route ------- -11/Scrapyard -10/Materials -10/Mines -9/Materials (discovered 1 exit: Min) History --------- Turn | Location | Event 24 | -11/Scrapyard | Discovered new exit (range 15) 138 | -11/Scrapyard | Entered Materials 305 | -10/Materials | Build established: Mutant 564 | -10/Materials | Discovered new exit (range 12) 633 | -10/Materials | Entered Mines 698 | -10/Mines | Met a Derelict bent on vengeance 729 | -10/Mines | Learned location of 1 exit from Materials 805 | -10/Mines | Discovered new exit (range 7) 842 | -10/Mines | Identified exit to Materials 847 | -10/Mines | Entered Materials 847 | -9/Materials | Accompanied by 2 allies 847 | -9/Materials | Evolved 2 slots: Propulsion x2 848 | -9/Materials | Identified exit to Mines 852 | -9/Materials | Led the pair of lost Derelicts to an unsafe place 901 | -9/Materials | Self-destructed Last Messages --------------- Data stored: Materials exits (x1). 00764_ K-01 Serf collects debris. 00805_ EXIT=FOUND 00806_ K-01 Serf collects debris. 00842_ EXIT=IDENTIFIED: MATERIALS PARAMETERS=PROPULSION+2 LOCATION=MATERIALS GOAL=ESCAPE Loading 1 Materials exit... 00852_ Z9-OYO(g): "This place looks worse than where we left..." 00857_ Z9-OYO(g): "Following you was a bad idea, I think." 00880_ U-05 Engineer works on Electrolysis Chamber. 00884_ K-01 Serf collects debris. 00884_ U-05 Engineer works on Electrolysis Chamber. 00886_ S-10 Pest destroyed. 00888_ Z9-OYO(g) destroyed. 00889_ U-05 Engineer works on Electrolysis Chamber. 00890_ S-10 Pest destroyed. 00890_ Switching to secondary target: S-10 Pest. 00899_ S-10 Pest destroyed. Map ----- +----------------------------------------------------+ | | | | | | | | | | | | | | | | | ?????????????????????????????????????????????????? | | ?????????????????????????????????????????????????? | | ?????????????????????????????????????????????????? | | ?????????????????????????????????????????????????? | | ?????????????????????????????????????????????????? | | ?????????????????????????????????????????????????? | | ?????????????????????????????????????????????????? | | ?????????????????????????????????????????????????? | | ?????????????????????????????????????????????????? | | ?????????????????????????????????????????????????? | | ???????????????????????????????????????#?????????? | | ????????????????????????????????????? +?????????? | | ??????????????????????????????????? #?????????? | | ????????????#########?########### ###???????? | | ????????????# T ?# ??????? | | ????????????# # ??????? | | ????????????# # ??????? | | ????????????# " + @######## ??????? | | ????????????# #*%=#??????????????????????? | | ????????????# #%= #??????????????????????? | | ????????????# ?# %[#??????????????????????? | | ????????????# ?# #??????????????????????? | | ????????????########??# =#??????????????????????? | | ??????????????????????# %#??????????????????????? | | ??????????????????????+ =#??????????????????????? | | ??????????????????????# #??????????????????????? | | ??????????????????????# #??????????????????????? | | ??????????????????????# #??????????????????????? | | ?????????????????????? ??????????????????????? | | ?????????????????????? ??????????????????????? | | ?????????????????????? " ??????????????????????? | | ?????????????????????? ??????????????????????? | | ??????????????????????? ? ???????????????????????? | | ?????????????????????????????????????????????????? | | ?????????????????????????????????????????????????? | | ?????????????????????????????????????????????????? | | ?????????????????????????????????????????????????? | | ?????????????????????????????????????????????????? | | ?????????????????????????????????????????????????? | | ?????????????????????????????????????????????????? | | ?????????????????????????????????????????????????? | | ?????????????????????????????????????????????????? | +----------------------------------------------------+ Best States ------------- Heat Dissipation 28 Energy Generation 10 Energy Capacity 125 Matter Stores 300 Matter Capacity 300 Sight Range 16 Terrain Scan Range 16 Terrain Scan Density 10 Evasion (%) 55 Item Schematics ----------------- None Robot Schematics ------------------ None Fabricated ------------ Nothing Repaired ---------- Nothing Alien Tech Used ----------------- None Achievements -------------- None Challenges ------------ None Game ------ Seed TeslaMagneticMegatreads Manual? 0 Play Time 00:06:27 Cumulative 33.3 hours Start 2025.05.30 @ 17:04:53 End 2025.05.30 @ 17:10:42 Sessions 1 Manual Loads 0 Difficulty Rogue Special Mode None Game No. 49 Rogue 49 Adventurer 0 Explorer 0 Win Type - Total 0 Types 0/0/0/0/0/0/0/0/0/0 Lore% 29 Gallery% 33 Achievement% 28 Wizard Run 0 Options --------- Layout 0 ASCII 0 Keyboard 0 Movement Mouse Keybinds 0 Fullscreen 1 Font 18/SmallcapsGlow Map View 76x50 Zoom Use 0% Tactical HUD 1 Map Filters NONE Filters NONE Steam 1 RUN: 7c3da0c6-1249-46f9-8c99-3d4aecc1eca4